fUSD/lending_fUSD_20241230
["ID","MTS","AMOUNT","RATE_DAILY","PERIOD"]
[347201312,1735568954793,-447.85487572,0.00011354,2]
[347201313,1735568957947,500.0,0.00025033,60]
[347201314,1735568959147,-773.85512428,0.00011354,2]
[347201315,1735568959169,-2000.0,0.000114,2]
[347201316,1735568959192,-150.0,0.00011436,2]
[347201317,1735568959213,-1486.46827572,0.00011442,2]
[347201318,1735568961110,-13.53172428,0.00011442,2]
[347201319,1735568961132,-167.4,0.00011454,2]
[347201320,1735568961154,-150.0,0.00011532,2]
[347201321,1735568961176,-250.0,0.00011536,2]
[347201322,1735568961197,-150.0,0.00011556,2]
[347201323,1735568961219,-1000.0,0.00011592,2]
[347201324,1735568961241,-150.0,0.00011628,2]
[347201325,1735568961262,-123.08814296,0.00011647,2]
[347201326,1735568963300,500.0,0.00025033,60]
[347201331,1735568969921,500.0,0.00025033,60]
[347201336,1735568977495,500.0,0.00025033,60]
[347201337,1735568985022,500.0,0.00025033,60]
[347201356,1735569031983,-102.20444758,0.00011282,2]
[347201357,1735569032004,-573.74555242,0.00011282,2]
[347201358,1735569032014,-180.91,0.00011356,2]
[347201359,1735569032023,-126.91185704,0.00011647,2]
[347201360,1735569032033,-150.0,0.00011724,2]
[347201361,1735569032042,-969.64,0.00011733,2]
[347201362,1735569032051,-200.0,0.00011741,2]
[347201363,1735569032060,-150.0,0.0001182,2]
[347201364,1735569032070,-150.0,0.00011868,2]
[347201365,1735569032079,-300.0,0.00011879,2]
[347201366,1735569032088,-766.642,0.0001188,2]
[347201367,1735569032098,-299.99,0.0001188,2]
[347201368,1735569032110,-999.99,0.0001188,2]
[347201369,1735569032119,-150.99,0.0001188,2]
[347201370,1735569032128,-150.0,0.00011917,2]
[347201371,1735569032137,-872.67,0.00011961,2]
[347201372,1735569032147,-182.76,0.00011978,2]
[347201373,1735569032156,-1955.14,0.00012,2]
[347201374,1735569032166,-182.76,0.00012,2]
[347201375,1735569032175,-450.0,0.00012,2]
[347201376,1735569032184,-150.0,0.00012013,2]
[347201377,1735569032194,-206.31,0.00012076,2]
[347201378,1735569032203,-1000.0,0.000121,2]
[347201379,1735569032212,-150.0,0.00012109,2]
[347201380,1735569032222,-787.77,0.00012123,2]
[347201381,1735569032231,-200.0,0.0001218,2]
[347201382,1735569032240,-150.0,0.00012181,2]
[347201383,1735569032250,-1000.0,0.00012199,2]
[347201384,1735569032259,-150.0,0.00012205,2]
[347201385,1735569032268,-429.34778484,0.00012223,2]
[347201386,1735569032277,-181.572868,0.0001225,2]
[347201387,1735569032286,-1612.0,0.000123,2]
[347201388,1735569032295,-150.0,0.00012301,2]
[347201389,1735569032304,-151.0,0.00012301,2]
[347201390,1735569032313,-3000.0,0.0001237,2]
[347201391,1735569032322,-227.0,0.00012375,2]
[347201392,1735569032334,-150.0,0.00012397,2]
[347201393,1735569032343,-2098.6408,0.00012399,2]
[347201394,1735569032352,-151.3090628,0.00012399,2]
[347201395,1735569032366,-326.52,0.000124,2]
[347201396,1735569032375,-4951.6813,0.000124,2]
[347201397,1735569032384,-219.579,0.000124,2]
[347201398,1735569032393,-5000.0,0.000124,2]
[347201399,1735569032403,-10089.340066,0.000124,2]
[347201400,1735569032411,-2933.04,0.000124,2]
[347201401,1735569032420,-153.955,0.000124,2]
[347201402,1735569032430,-1500.0,0.000124,2]
[347201403,1735569032439,-255.32987024,0.000124,2]
[347201404,1735569032475,-1244.67012976,0.000124,2]
[347201405,1735569032484,-1500.0,0.000124,2]
[347201406,1735569032494,-1500.0,0.000124,2]
[347201407,1735569032503,-1500.0,0.000124,2]
[347201408,1735569032512,-1500.0,0.000124,2]
[347201409,1735569032521,-648.78148837,0.000124,2]
[347201410,1735569032533,-851.21851163,0.000124,2]
[347201411,1735569032542,-1500.0,0.000124,2]
[347201412,1735569032552,-1500.0,0.000124,2]
[347201413,1735569032561,-1000.0,0.000124,2]
[347201414,1735569032571,-948.96,0.000124,2]
[347201415,1735569032581,-217.39787652,0.000124,2]
[347201416,1735569032590,-500.0,0.00012473,2]
[347201417,1735569032600,-150.0,0.00012493,2]
[347201418,1735569032614,-150.0,0.00012493,2]
[347201419,1735569032624,-5138.731581,0.00012496,2]
[347201420,1735569032634,-3190.69203085,0.00012496,2]
[347201421,1735569032674,-1101.0,0.00012496,2]
[347201422,1735569032686,-5729.16741115,0.00012496,2]
[347201423,1735569032697,-11601.62970919,0.00012498,2]
[347201424,1735569032709,-393.39757229,0.00012498,2]
[347201425,1735569032720,-4741.99176979,0.00012498,2]
[347201426,1735569032731,-51683.36151081,0.00012498,2]
[347201427,1735569032741,-3889.14885825,0.00012499,2]
[347201428,1735569032750,-39690.83480865,0.00012499,2]
[347201429,1735569035233,-276.6,0.00011254,2]
[347201430,1735569035242,-346.89309,0.00012499,2]
[347201431,1735569035253,-1187.8,0.00012499,2]
[347201436,1735569037874,-607.317302,0.00012499,2]
[347201437,1735569037886,-155192.77190848,0.00012499,2]
[347201438,1735569037896,-200.0,0.00012499,2]
[347201439,1735569037906,-917.87,0.00012499,2]
[347201440,1735569037915,-250000.0,0.00012499,2]
[347201441,1735569037925,-249.68211627,0.00012499,2]
[347201442,1735569037935,-16240.60774852,0.000125,2]
[347201443,1735569037944,-5208704.58045975,0.000125,2]
[347201444,1735569037953,-2704942.58362976,0.000125,2]
[347201600,1735569039814,-15915.68553483,0.000125,2]
[347201603,1735569039837,-487.1760914,0.000125,2]
[347201618,1735569039975,-664.41871925,0.000125,2]
[347201641,1735569040183,-3711.68,0.000125,2]
[347201772,1735569042978,-2106.69668075,0.000125,2]
[347201789,1735569043216,-12.61735474,0.000125,2]
[347201821,1735569045930,-344.94896628,0.000125,2]
[347201822,1735569045942,-188975.25922332,0.000125,2]
[347201823,1735569045953,-1776.64055669,0.000125,2]
[347201824,1735569046109,-368.47011836,0.000125,2]
[347201825,1735569046212,-29.33648853,0.000125,2]
[347201826,1735569074070,749.92,0.00010056,2]
[347201847,1735569192691,-988.9,0.00011256,2]
[347201848,1735569192721,-200.0,0.00011281,2]
[347201849,1735569192753,-750.378,0.0001188,2]
[347201850,1735569192787,-602.52,0.00011945,2]
[347201851,1735569192817,-602.52,0.00011948,2]
[347201852,1735569192848,-602.52,0.00011951,2]
[347201853,1735569192878,-602.52,0.00011954,2]
[347201854,1735569192908,-602.52,0.00011958,2]
[347201855,1735569192939,-602.52,0.00011961,2]
[347201856,1735569192970,-602.52,0.00011964,2]
[347201857,1735569193002,-602.52,0.00011967,2]
[347201858,1735569193032,-602.52,0.0001197,2]
[347201859,1735569193063,-602.52,0.00011973,2]
[347201860,1735569193094,-468.524,0.00011977,2]
[347201861,1735569193106,-133.996,0.00011977,2]
[347201862,1735569193115,-602.52,0.0001198,2]
[347201863,1735569193124,-252.384,0.00011983,2]
[347201864,1735569193145,-200.0,0.00011983,2]
[347201865,1735569193169,-150.136,0.00011983,2]
[347201866,1735569193178,-600.242,0.00011986,2]
[347201867,1735569193202,-2.278,0.00011986,2]
[347201868,1735569193211,-600.242,0.00011989,2]
[347201869,1735569193226,-2.278,0.00011989,2]
[347201870,1735569193235,-600.242,0.00011992,2]
[347201871,1735569193262,-2.278,0.00011992,2]
[347201872,1735569193271,-600.242,0.00011995,2]
[347201873,1735569193302,-2.278,0.00011995,2]
[347201874,1735569193311,-600.242,0.00011999,2]
[347201875,1735569193323,-2.278,0.00011999,2]
[347201876,1735569193332,-600.242,0.00012,2]
[347201877,1735569193343,-602.52,0.00012,2]
[347201878,1735569193358,-602.52,0.00012,2]
[347201879,1735569193386,-602.52,0.00012,2]
[347201880,1735569193402,-602.52,0.00012,2]
[347201881,1735569193427,-602.52,0.00012,2]
[347201882,1735569193447,-602.52,0.00012,2]
[347201883,1735569194104,140000.0,0.000122,7]
[347201884,1735569251976,238.75,0.00010137,2]
[347201885,1735569421190,11946.10248437,0.00025033,120]
[347201888,1735569729935,439.74814065,0.00011,2]
[347201891,1735569908349,150.0,0.00010775,2]
[347201892,1735569913885,746.94,0.00010813,2]
[347201893,1735569914039,150.0,0.00010775,2]
[347201894,1735569924608,150.0,0.00010775,2]
[347201895,1735569949876,150.0,0.00010775,2]
[347201896,1735569982615,746.89,8.598e-05,2]
[347201897,1735569983046,746.89,0.00010862,2]
[347201898,1735569998471,181.16092209,0.00010939,2]
[347201899,1735570036137,-437.56386603,0.00011021,2]
[347201900,1735570043140,-462.39238604,0.00011021,2]
[347201901,1735570045425,443.00468649,0.00010921,2]
[347201926,1735570147110,-215.00374793,0.00011021,2]
[347201927,1735570147132,-215.68674778,0.00011021,2]
[347201928,1735570148159,-34.31325222,0.00011021,2]
[347201929,1735570148186,-156.64,0.00011029,2]
[347201930,1735570148209,-34.58382478,0.00011034,2]
[347201931,1735570148241,-122.05617522,0.00011034,2]
[347201932,1735570148271,-156.64,0.00011039,2]
[347201933,1735570148299,-156.64,0.00011044,2]
[347201934,1735570148325,-156.64,0.00011049,2]
[347201935,1735570148348,-156.64,0.00011054,2]
[347201936,1735570148369,-156.64,0.00011059,2]
[347201937,1735570148392,-1168.82,0.00011061,2]
[347201938,1735570148415,-156.64,0.00011064,2]
[347201939,1735570148440,-156.64,0.00011069,2]
[347201940,1735570148463,-156.64,0.00011074,2]
[347201941,1735570148487,-150.0,0.00011075,2]
[347201942,1735570148510,-156.64,0.00011079,2]
[347201943,1735570148532,-156.64,0.00011084,2]
[347201944,1735570148555,-200.0,0.000111,4]
[347201945,1735570148578,-1000.0,0.0001113,2]
[347201946,1735570148600,-250.0,0.00011153,2]
[347201947,1735570148622,-500.0,0.000112,4]
[347201948,1735570148644,-150.0,0.0001126,2]
[347201949,1735570148667,-601.49,0.00011267,2]
[347201950,1735570148690,-700.0,0.000113,4]
[347201951,1735570148716,-150.0,0.00011374,2]
[347201952,1735570148738,-150.0,0.00011374,2]
[347201953,1735570148760,-1000.0,0.000114,4]
[347201954,1735570148781,-1324.92502771,0.000115,2]
[347201955,1735570152989,152.34,0.00010137,2]
[347201956,1735570154122,-7334.73497229,0.000115,2]
[347201957,1735570154145,-150.99,0.000115,2]
[347201958,1735570154167,-999.99,0.000115,2]
[347201959,1735570154191,-17869.21334771,0.000115,2]
[347201973,1735570167114,-270.48780477,0.00011499,2]
[347201974,1735570167135,-9833.67665229,0.000115,2]
[347201975,1735570167158,-299.99,0.000115,2]
[347201976,1735570167179,-2449.86,0.000115,2]
[347201977,1735570167201,-483.24869202,0.000115,2]
[347201989,1735570211510,500.0,0.00025191,60]
[347202024,1735570232172,-158.14,0.00011128,2]
[347202026,1735570232182,-212.20808,0.000115,2]
[347202028,1735570232194,-854.18322798,0.000115,2]
[347202030,1735570232203,-71.92529202,0.000115,2]
[347202031,1735570232221,-79.06470798,0.000115,2]
[347202032,1735570232231,-1200.0,0.000115,4]
[347202033,1735570232241,-10521.0,0.000115,2]
[347202034,1735570232254,-200.0,0.000116,4]
[347202035,1735570232263,-150.0,0.00011673,2]
[347202036,1735570232273,-27107.43,0.00011699,7]
[347202037,1735570232282,-311.01529202,0.00011699,7]
[347202038,1735570232294,-24884.85470798,0.00011699,7]
[347202039,1735570232303,-3566.09578882,0.00011699,7]
[347202040,1735570232314,-1286.0,0.00011699,7]
[347202041,1735570232326,-2551.4071758,0.00011699,7]
[347202042,1735570232338,-314.22734343,0.00011699,7]
[347202043,1735570232565,-1210.46774761,0.00011699,7]
[347202044,1735570232576,-472.69545587,0.00011699,7]
[347202045,1735570232588,-1319.09134953,0.00011699,7]
[347202046,1735570232599,-307.8334,0.00011699,7]
[347202047,1735570232611,-496.86092717,0.00011699,7]
[347202048,1735570232622,-10036.2629985,0.00011699,7]
[347202049,1735570232649,-397.500005,0.00011699,7]
[347202050,1735570232660,-3271.05598294,0.00011699,7]
[347202051,1735570232672,-9320.74182533,0.00011699,7]
[347202052,1735570232681,-11501.11099423,0.000117,7]
[347202053,1735570232692,-1856.855,0.000117,7]
[347202054,1735570235503,-2086.25897046,0.000117,7]
[347202055,1735570236220,-4140.35305128,0.000117,7]
[347202056,1735570236237,-1103.07621516,0.000117,7]
[347202057,1735570236254,-25358.08371076,0.000117,7]
[347202059,1735570236268,-6036.48623572,0.000117,7]
[347202062,1735570236283,-16104.31582239,0.000117,7]
[347202064,1735570236294,-5907.21789319,0.000117,7]
[347202066,1735570236308,-2513.36919445,0.000117,7]
[347202069,1735570236322,-26606.73291236,0.000117,7]
[347202071,1735570236335,-11526.84,0.000117,7]
[347202073,1735570236347,-200.0,0.000117,4]
[347202076,1735570236359,-200.0,0.000118,4]
[347202078,1735570236371,-752.211,0.0001188,2]
[347202080,1735570236382,-2055.79373339,0.00011898,2]
[347202083,1735570236396,-305.1798017,0.00011898,2]
[347202085,1735570236411,-1419.77800102,0.00011898,2]
[347202374,1735570239178,-1493.59536389,0.00011898,2]
[347202376,1735570239187,-5000.0,0.00011898,2]
[347202378,1735570239196,-286.0154,0.00011898,2]
[347202380,1735570239206,-1000.0,0.00011898,2]
[347202382,1735570239216,-189.53384069,0.00011898,2]
[347202384,1735570239225,-1042.26853922,0.00011898,2]
[347202386,1735570239234,-164.26802109,0.00011898,2]
[347202388,1735570239243,-288.52360159,0.00011898,2]
[347202390,1735570239256,-1042.26853922,0.00011899,2]
[347202392,1735570239266,-200.0,0.000119,4]
[347202394,1735570239275,-1042.26853922,0.000119,2]
[347202396,1735570239284,-500.0,0.00011973,2]
[347202398,1735570239294,-150.0,0.00011973,2]
[347202400,1735570239304,-150.0,0.00011973,2]
[347202402,1735570239313,-150.0,0.00011973,2]
[347202404,1735570239322,-549.88230768,0.00011973,2]
[347202406,1735570239332,-500.0,0.00011973,2]
[347202408,1735570239342,-500.0,0.00011973,2]
[347202410,1735570239352,-500.0,0.00011973,2]
[347202412,1735570239361,-180.3529549,0.00011997,2]
[347202414,1735570239371,-500.0,0.00011997,2]
[347202416,1735570239380,-527.34382187,0.00011997,2]
[347202418,1735570239389,-500.0,0.00011997,2]
[347202421,1735570239399,-530.27293503,0.00011997,2]
[347202422,1735570239408,-13.40613565,0.00011997,2]
[347202425,1735570239420,-2333.02586435,0.00011997,2]
[347202427,1735570239429,-153.955,0.00011997,2]
[347202428,1735570239439,-938.71,0.00011997,2]
[347202429,1735570239449,-16174.30913565,0.00011998,2]
[347202430,1735570239462,-5962284.37839103,0.00011998,2]
[347202431,1735570239471,-17641.3366791,0.00011998,2]
[347202432,1735570239480,-3258353.01482756,0.00011998,2]
[347202433,1735570239520,-9282.57330001,0.00011998,2]
[347202435,1735570239532,-665.32370499,0.00011998,2]
[347202437,1735570239548,-926.37545,0.00011998,2]
[347202439,1735570239560,-4599.4814126,0.00011998,2]
[347202444,1735570239608,-606.99656703,0.00011998,2]
[347202445,1735570239620,-1247.66514636,0.00011998,2]
[347202446,1735570239660,-990.9612384,0.00011998,2]
[347202447,1735570239672,-25620.24613296,0.00011998,2]
[347202449,1735570239683,-2893.45326867,0.00011998,2]
[347202451,1735570239694,-1587.28223466,0.00011998,2]
[347202453,1735570239705,-925.93,0.00011998,2]
[347202455,1735570239717,-41931.84,0.00011998,2]
[347202504,1735570240134,-276.26530975,0.000111,4]
[347202506,1735570240145,-23.73469025,0.000111,4]
[347202508,1735570240154,-5624.48530975,0.00011998,2]
[347202510,1735570240165,-1153.99999999,0.00011998,2]
[347202512,1735570240175,-1849.4,0.00011998,2]
[347202516,1735570240201,-242073.60579078,0.00011998,2]
[347202520,1735570240231,-1856.99570903,0.00011998,2]
[347202528,1735570240302,-94060.61029949,0.00011998,2]
[347202533,1735570240338,-37155.22476028,0.00011998,2]
[347202535,1735570240351,-927.40434401,0.00011998,2]
[347202856,1735570243257,-600.0,0.000112,4]
[347202858,1735570243266,-180.75251286,0.00011898,2]
[347202862,1735570243278,-706.55009695,0.00011898,2]
[347202882,1735570243414,-1447.78479097,0.00011898,2]
[347202884,1735570243426,-769.45156274,0.00011898,2]
[347202902,1735570243536,-1895.46103648,0.00011898,2]
[347202904,1735570243546,-975.49202932,0.00011998,2]
[347202906,1735570243558,-3632.6958566,0.00011998,2]
[347203135,1735570245095,3000.0,0.00025191,120]
[347203157,1735570246129,-608.35712949,0.000113,4]
[347203158,1735570246170,-291.64287051,0.000113,4]
[347203159,1735570246179,-502.38,0.00011835,2]
[347203160,1735570246188,-1447.16644767,0.00011998,2]
[347203161,1735570246200,-11813.75651627,0.00011998,2]
[347203162,1735570246211,-19766.26288159,0.00011998,2]
[347203163,1735570246331,-701.06436949,0.000114,4]
[347203164,1735570246345,-344.15897616,0.000114,4]
[347203165,1735570246381,-154.77665435,0.000114,4]
[347203166,1735570246391,-4175.50359116,0.00011998,2]
[347203167,1735570246403,-109116.25999227,0.00011998,2]
[347203168,1735570246431,-12686.63831439,0.00011998,2]
[347203169,1735570246443,-17452.2427031,0.00011998,2]
[347203170,1735570246454,-429.43626339,0.00011998,2]
[347203171,1735570246465,-284.90048945,0.00011998,2]
[347203172,1735570246477,-372.35026535,0.00011998,2]
[347203173,1735570246488,-411.866,0.00011998,2]
[347203174,1735570246500,-92853.89456873,0.00011998,2]
[347203175,1735570246516,-2495.0001,0.00011998,2]
[347203176,1735570246545,-254.0389,0.00011998,2]
[347203177,1735570246567,-1043.22659552,0.00011998,2]
[347203178,1735570246585,-14187935.27898862,0.00011998,2]
[347203179,1735570246595,-133273.638,0.00012,2]
[347203180,1735570246605,-848.78274557,0.00012,2]
[347203182,1735570246614,-151.77,0.00012,2]
[347203184,1735570246623,-150.01,0.00012,2]
[347203186,1735570246633,-151.42,0.00012,2]
[347203188,1735570246643,-150.89,0.00012,2]
[347203190,1735570246652,-602.52,0.00012002,2]
[347203192,1735570246661,-602.52,0.00012005,2]
[347203194,1735570246671,-345.73,0.00012016,2]
[347203196,1735570246680,-182.22,0.00012078,2]
[347203198,1735570246689,-437.44,0.0001209,2]
[347203199,1735570246699,-332.1,0.0001209,2]
[347203201,1735570246708,-200.0,0.0001212,2]
[347203203,1735570246717,-938.71,0.00012134,2]
[347203205,1735570246727,-429.34778484,0.00012138,2]
[347203207,1735570246737,-148735.32,0.000122,7]
[347203209,1735570246745,-938.71,0.00012271,2]
[347203210,1735570246754,-1000.0,0.000123,2]
[347203211,1735570246766,-1794.3307,0.00012366,2]
[347203212,1735570246776,-1000.0,0.00012366,2]
[347203213,1735570246785,-3000.0,0.0001237,2]
[347203214,1735570246795,-5977.771,0.00012373,2]
[347203215,1735570246809,-38429.6567,0.00012373,2]
[347203216,1735570246819,-94856.09942475,0.0001238,2]
[347203217,1735570246828,-221.5144,0.00012398,2]
[347203218,1735570246837,-144569.37069334,0.00012399,2]
[347203219,1735570246848,-150991.88465563,0.00012399,2]
[347203220,1735570246858,-1430.4553,0.000124,2]
[347203221,1735570246867,-2803.4134,0.000124,2]
[347203222,1735570246877,-1000.0,0.000124,2]
[347203223,1735570246889,-2843.0,0.000124,2]
[347203224,1735570246902,-938.71,0.00012408,2]
[347203225,1735570246912,-1168.82,0.00012444,2]
[347203226,1735570246921,-32221.0,0.00012466,2]
[347203227,1735570246930,-8725.8829194,0.00012494,2]
[347203228,1735570246940,-4724.5631142,0.00012494,2]
[347203229,1735570246949,-219.8941,0.00012499,2]
[347203230,1735570246958,-2336029.62968525,0.000125,2]
[347203231,1735570246971,-4888839.61222989,0.000125,2]
[347203232,1735570246982,-447.77995139,0.000125,2]
[347203233,1735570269080,3000.0,0.00025191,120]
[347203235,1735570300022,1731.419,0.00025191,120]
[347203236,1735570768391,3000.0,0.0002496,90]
[347203237,1735570798419,3000.0,0.0002496,60]
[347203238,1735570841526,1500.0,0.0002496,60]
[347203239,1735570917660,898.46,9.085e-05,2]
[347203240,1735570941542,1000.0,0.0002496,60]
[347203241,1735570962892,1041.74,0.00010992,2]
[347203242,1735570994176,-9000000.0,0.0002496,30]
[347203243,1735571015620,-6000000.0,0.0002496,30]
[347203244,1735571057131,173.79,0.00010137,2]
[347203245,1735571093640,211.46,0.0001092,2]
[347203246,1735571093877,211.46,0.00010923,2]
[347203247,1735571094079,211.46,0.00010926,2]
[347203248,1735571095064,211.46,0.00010929,2]
[347203249,1735571095205,211.46,0.00010932,2]
[347203250,1735571095291,211.46,0.00010934,2]
[347203251,1735571095375,211.46,0.00010937,2]
[347203252,1735571095469,211.46,0.0001094,2]
[347203253,1735571095557,211.46,0.00010943,2]
[347203254,1735571095737,211.46,0.00010946,2]
[347203255,1735571095950,211.46,0.00010949,2]
[347203256,1735571096143,211.46,0.00010952,2]
[347203257,1735571096351,211.46,0.00010955,2]
[347203258,1735571096752,211.46,0.00010957,2]
[347203259,1735571096956,211.46,0.0001096,2]
[347203260,1735571097164,211.46,0.00010963,2]
[347203261,1735571097383,211.46,0.00010966,2]
[347203262,1735571097596,211.46,0.00010969,2]
[347203263,1735571097892,211.46,0.00010972,2]
[347203264,1735571098040,211.46,0.00010975,2]
[347203265,1735571169721,30000.0,0.00024963,60]
[347203266,1735571173882,230.0,0.00015,30]
[347203267,1735571177403,3000.0,0.00024963,60]
[347203268,1735571214431,4000.0,0.00024963,60]
[347203269,1735571217811,30000.0,0.00024963,60]
[347203270,1735571227588,200.0,0.00010653,2]
[347203271,1735571232118,-202.90125684,0.00011104,2]
[347203272,1735571253289,-47.09874316,0.00011104,2]
[347203273,1735571253313,-241.62778291,0.00011132,2]
[347203294,1735571343078,160.46,0.00010639,2]
[347203300,1735571348357,-1355.43221709,0.00011132,2]
[347203301,1735571348381,-169.98,0.00011182,2]
[347203302,1735571348404,-250.0,0.00011238,2]
[347203303,1735571348428,-150.0,0.00011244,2]
[347203304,1735571348453,-150.0,0.00011244,2]
[347203305,1735571348476,-150.0,0.00011244,2]
[347203306,1735571348499,-150.0,0.00011244,2]
[347203307,1735571348521,-2310.16,0.00011268,2]
[347203308,1735571348547,-150.0,0.00011298,2]
[347203309,1735571348570,-1000.0,0.00011309,2]
[347203310,1735571348592,-150.0,0.00011317,2]
[347203311,1735571348615,-150.0,0.00011348,2]
[347203312,1735571348638,-898.46,0.00011349,2]
[347203313,1735571348661,-150.0,0.00011352,2]
[347203314,1735571348683,-150.0,0.00011391,2]
[347203315,1735571348706,-150.0,0.00011407,2]
[347203316,1735571348732,-150.0,0.00011452,2]
[347203317,1735571348755,-150.0,0.00011461,2]
[347203318,1735571348778,-150.0,0.00011464,2]
[347203319,1735571348802,-200.0,0.000115,4]
[347203320,1735571348824,-168.54,0.00011503,2]
[347203321,1735571348848,-150.99,0.00011503,2]
[347203322,1735571348870,-150.99,0.00011503,2]
[347203323,1735571348891,-257.59,0.00011503,2]
[347203324,1735571348914,-2751.0,0.00011507,2]
[347203325,1735571348937,-150.0,0.00011515,2]
[347203326,1735571348960,-150.0,0.00011538,2]
[347203327,1735571348982,-150.0,0.00011556,2]
[347203328,1735571349005,-150.0,0.0001157,2]
[347203329,1735571349027,-250.0,0.0001159,2]
[347203330,1735571349052,-202.42898407,0.000116,4]
[347203335,1735571361700,20000.0,0.00024963,60]
[347203364,1735571432440,-297.57101593,0.000116,4]
[347203365,1735571432450,-505.49,0.00011602,2]
[347203366,1735571432460,-496.77,0.00011603,2]
[347203367,1735571432470,-502.05,0.00011606,2]
[347203368,1735571432479,-223.33144127,0.00011609,2]
[347203369,1735571432492,-283.96855873,0.00011609,2]
[347203370,1735571432502,-150.0,0.00011611,2]
[347203371,1735571432512,-150.0,0.00011624,2]
[347203372,1735571432521,-565.4463914,0.00011633,2]
[347203373,1735571432530,-150.0,0.0001166,2]
[347203374,1735571432540,-565.4463914,0.00011664,2]
[347203375,1735571432550,-150.0,0.00011678,2]
[347203376,1735571432559,-150.0,0.00011685,2]
[347203377,1735571432569,-800.0,0.000117,4]
[347203378,1735571432579,-150.0,0.00011733,2]
[347203379,1735571432588,-150.0,0.00011758,2]
[347203380,1735571432598,-150.0,0.00011764,2]
[347203381,1735571432610,-150.0,0.00011787,2]
[347203382,1735571432620,-11133.72865847,0.00011798,2]
[347203383,1735571432632,-1138.05576468,0.00011798,2]
[347203384,1735571432644,-552.52092,0.00011798,2]
[347203385,1735571432660,-8669.55519593,0.00011798,2]
[347203386,1735571432671,-3997.06646092,0.00011798,2]
[347203387,1735571432681,-5128.8059,0.00011798,2]
[347203388,1735571432691,-2499.7017,0.00011798,2]
[347203389,1735571432700,-311.2377,0.00011798,2]
[347203390,1735571432710,-32146.3679,0.00011798,2]
[347203391,1735571432719,-255.4465,0.00011798,2]
[347203392,1735571432729,-1000.0,0.000118,2]
[347203393,1735571432738,-1100.0,0.000118,4]
[347203394,1735571432750,-1711.3914,0.000118,2]
[347203395,1735571432759,-150.0,0.00011832,2]
[347203396,1735571432769,-150.0,0.00011841,2]
[347203397,1735571432779,-150.0,0.00011868,2]
[347203398,1735571432788,-166.649,0.0001188,2]
[347203399,1735571432797,-870.15,0.0001188,2]
[347203400,1735571432807,-150.0,0.00011896,2]
[347203401,1735571432816,-1000.0,0.00011898,2]
[347203402,1735571432826,-4489.40465875,0.00011898,2]
[347203403,1735571432849,-12443.55279638,0.00011898,2]
[347203404,1735571432862,-1200.789594,0.00011898,2]
[347203405,1735571432874,-63429.49497741,0.00011898,2]
[347203406,1735571432885,-1196.5,0.00011898,2]
[347203407,1735571436968,-10465.81757818,0.00011898,2]
[347203408,1735571436980,-1611.31673494,0.00011898,2]
[347203409,1735571436991,-5143.34758814,0.00011898,2]
[347203410,1735571437003,-338.9417722,0.00011898,2]
[347203411,1735571437012,-371.6343,0.00011898,2]
[347203412,1735571437021,-500.0,0.00011898,2]
[347203413,1735571437032,-84.3175278,0.00011898,2]
[347203416,1735571437053,-1230.44480407,0.00011898,2]
[347203419,1735571437074,-2727.3619961,0.00011898,2]
[347203421,1735571437085,-831.96687203,0.00011898,2]